fUSD/lending_fUSD_20240609
["ID","MTS","AMOUNT","RATE_DAILY","PERIOD"]
[328860866,1717897838417,-872.1990653,0.00024999,2]
[328860867,1717897838785,-354.451,0.00024999,2]
[328860870,1717897843035,-1650.7612534,0.00024999,2]
[328860871,1717897843048,-891.22320054,0.00024999,2]
[328860872,1717897843063,-691.31999944,0.00024999,2]
[328860879,1717897843962,-2337.22832718,0.00024999,2]
[328860880,1717897843973,-172.75,0.00027508,2]
[328860881,1717897843983,-15420.82446133,0.00028,2]
[328860913,1717897846636,-2825.04658628,0.00028,2]
[328860923,1717897847418,-8.90597734,0.00028,2]
[328860924,1717897847431,-17802.58168049,0.00028,2]
[328860929,1717898844143,-1000.0,0.00017259,2]
[328860930,1717898844167,-165.9473143,0.00019,2]
[328860931,1717898844189,-1004.2039,0.000191,2]
[328860932,1717898844210,-2971.06834817,0.000192,2]
[328860947,1717899032993,-259.37769393,0.000192,2]
[328860948,1717899033006,-764.43220017,0.000192,2]
[328860949,1717899033360,-23.29853897,0.000192,2]
[328860950,1717899033370,-27612.66725593,0.000192,2]
[328860951,1717899033383,-789.29286824,0.000192,2]
[328860952,1717899033395,-600.69020861,0.000192,2]
[328861018,1717899039138,-402.59140482,0.000192,2]
[328861019,1717899039671,-3977.124177,0.000192,2]
[328861020,1717899042032,-1603.01655963,0.000192,2]
[328861021,1717899042043,-500.0,0.000192,2]
[328861022,1717899042054,-318.36430025,0.00019451,2]
[328861023,1717899042067,-3574.86315922,0.00019451,2]
[328861024,1717899042078,-155.0,0.0002,2]
[328861025,1717899042089,-226.67450997,0.000201,2]
[328861026,1717899042099,-5320.67747034,0.00021697,2]
[328861027,1717899043099,-811.54669209,0.00021697,2]
[328861028,1717899043398,-531.33951889,0.00021697,2]
[328861033,1717899044753,-1260.71631868,0.00021697,2]
[328861034,1717899044763,-300.0,0.00021698,2]
[328861035,1717899044773,-499.99,0.00021698,2]
[328861036,1717899044783,-215.72,0.00021698,2]
[328861037,1717899044792,-662.0,0.000223,2]
[328861038,1717899044802,-2102.0,0.000224,2]
[328861039,1717899044812,-222.995,0.00022415,2]
[328861040,1717899044822,-602.09,0.00023532,2]
[328861041,1717899044831,-498.0,0.000238,5]
[328861042,1717899044841,-299.7,0.00024384,2]
[328861043,1717899044852,-152.01,0.00024384,2]
[328861044,1717899044862,-6797.18284586,0.00024999,2]
[328861045,1717899044872,-1250.0,0.00025,2]
[328861046,1717899044882,-159.09108089,0.00025,2]
[328861047,1717899044892,-326.00087513,0.00025,2]
[328861048,1717899044903,-250.0,0.00025223,2]
[328861049,1717899044913,-151.7,0.0002528,2]
[328861050,1717899044923,-250.0,0.00025283,2]
[328861051,1717899044933,-250.0,0.00025304,2]
[328861052,1717899044944,-23900.0,0.00025307,2]
[328861053,1717899044954,-325.95,0.00025321,2]
[328861054,1717899044963,-800.0,0.00025409,2]
[328861055,1717899044973,-251.05,0.00025425,2]
[328861056,1717899044984,-200.0,0.00025678,2]
[328861057,1717899044994,-602.09,0.00025796,2]
[328861058,1717899045003,-156.14244047,0.00026276,2]
[328861059,1717899045013,-1000.0,0.00026446,2]
[328861060,1717899045022,-166.66666666,0.00026447,2]
[328861061,1717899045032,-156.23980668,0.00026545,2]
[328861062,1717899045041,-159.66485689,0.00026549,2]
[328861063,1717899045051,-152.72272885,0.00026586,2]
[328861064,1717899045061,-1500.0,0.000266,2]
[328861065,1717899045071,-155.67342785,0.00026755,2]
[328861066,1717899045081,-169.98,0.00026781,2]
[328861067,1717899045090,-166.66666667,0.00026831,2]
[328861068,1717899045100,-164.92612297,0.00026845,2]
[328861069,1717899045109,-156.15709622,0.00026884,2]
[328861070,1717899045119,-152.72272885,0.00026999,2]
[328861071,1717899045128,-1300.0,0.00027,2]
[328861072,1717899045137,-156.15709622,0.00027048,2]
[328861073,1717899045147,-173.09676215,0.00027091,2]
[328861074,1717899045156,-159.66485689,0.00027092,2]
[328861075,1717899045166,-155.67342785,0.00027098,2]
[328861076,1717899045175,-166.66666667,0.00027099,2]
[328861077,1717899045186,-155.63277684,0.00027119,2]
[328861078,1717899045196,-152.72272885,0.0002712,2]
[328861079,1717899045207,-152.72272885,0.00027134,2]
[328861080,1717899045216,-156.23980668,0.00027156,2]
[328861081,1717899045226,-156.23980668,0.00027275,2]
[328861082,1717899045236,-150.0,0.00027397,2]
[328861083,1717899045246,-177.15,0.00027397,2]
[328861084,1717899045257,-2502.0,0.000274,2]
[328861085,1717899045268,-501.0,0.000274,2]
[328861086,1717899045278,-150.84,0.00027497,2]
[328861087,1717899045287,-2026.79392202,0.00027529,2]
[328861088,1717899045297,-211.525,0.0002762,2]
[328861089,1717899045307,-1263.0008,0.0002762,2]
[328861090,1717899045317,-44795.85398643,0.0002772,2]
[328861091,1717899045327,-2318.65806845,0.00027726,2]
[328861092,1717899045336,-180.0,0.0002778,2]
[328861093,1717899045346,-2756.8518,0.000278,2]
[328861094,1717899045356,-168.831523,0.00027826,2]
[328861095,1717899045365,-3537.107452,0.00027826,2]
[328861096,1717899045375,-158.131553,0.00027826,2]
[328861097,1717899045386,-184.315015,0.00027826,2]
[328861098,1717899045396,-3522.459895,0.00027826,2]
[328861099,1717899045406,-152.72272885,0.00027859,2]
[328861100,1717899045416,-697.68,0.0002789,3]
[328861101,1717899045426,-569.33,0.0002789,2]
[328861102,1717899045437,-405.96935141,0.00027899,2]
[328861103,1717899045447,-500.0,0.000279,2]
[328861104,1717899045459,-522.0331,0.000279,2]
[328861105,1717899045469,-58961.05473448,0.000279,2]
[328861106,1717899047292,-41.02961657,0.000192,2]
[328861121,1717899860386,-153.23755659,0.00029863,90]
[328861122,1717899949542,394.95613382,0.00028,120]
[328861124,1717900046115,-1000.0,0.00017259,2]
[328861125,1717900046141,-800.0,0.00018,2]
[328861126,1717900046165,-300.0,0.000191,2]
[328861127,1717900046188,-1006.40899435,0.00019199,2]
[328861128,1717900046213,-429.66259847,0.000192,2]
[328861129,1717900046237,-500.0,0.000192,2]
[328861130,1717900046263,-8702.2453943,0.000192,2]
[328861131,1717900152095,-4200.11472363,0.000192,2]
[328861133,1717900232190,-150.0,0.00019199,2]
[328861134,1717900232201,-615.5160698,0.000192,2]
[328861135,1717900232214,-447.53187127,0.000192,2]
[328861136,1717900232226,-609.82349313,0.000192,2]
[328861137,1717900232551,-293.26397614,0.000192,2]
[328861138,1717900232564,-650.23905597,0.000192,2]
[328861139,1717900232577,-1697.82163221,0.000192,2]
[328861140,1717900232589,-3884.19272056,0.000192,2]
[328861141,1717900232905,-13979.46308055,0.000192,2]
[328861142,1717900232915,-718.4720498,0.000192,2]
[328861143,1717900232926,-364.34411708,0.000192,2]
[328861144,1717900232936,-19777.11820586,0.000192,2]
[328861145,1717900232947,-511.4463626,0.000219,2]
[328861146,1717900232957,-790.53322285,0.00022,2]
[328861147,1717900232970,-8987.38046598,0.0002259,2]
[328861148,1717900232981,-353.7370284,0.00023,2]
[328861149,1717900232991,-499.99,0.00023,2]
[328861150,1717900233001,-560.74,0.00023824,2]
[328861151,1717900233012,-170.57,0.00024384,2]
[328861152,1717900233022,-6797.18284586,0.000249,2]
[328861153,1717900233032,-326.00087513,0.00025,2]
[328861154,1717900233043,-442.0,0.000253,5]
[328861155,1717900233054,-209.2,0.00025434,2]
[328861156,1717900233064,-272.65,0.00025441,2]
[328861157,1717900233074,-454.55,0.0002546,2]
[328861158,1717900233084,-250.0,0.00025527,2]
[328861159,1717900233095,-250.0,0.00025632,2]
[328861160,1717900233105,-1000.0,0.00025677,2]
[328861161,1717900233116,-250.0,0.0002569,2]
[328861162,1717900233127,-1500.0,0.00026,2]
[328861163,1717900233137,-560.74,0.00026088,2]
[328861164,1717900233147,-1000.0,0.00026317,2]
[328861165,1717900233158,-152.72272886,0.00026318,2]
[328861166,1717900233168,-155.43993928,0.0002632,2]
[328861167,1717900233178,-155.63277685,0.00026334,2]
[328861168,1717900233188,-154.24757255,0.00026374,2]
[328861169,1717900233199,-152.72272886,0.00026462,2]
[328861170,1717900233209,-155.40897019,0.00026545,2]
[328861171,1717900233219,-155.40897019,0.00026597,2]
[328861172,1717900233229,-152.72272886,0.00026945,2]
[328861173,1717900233240,-165.47566355,0.00027034,2]
[328861174,1717900233250,-150.84,0.00027338,2]
[328861175,1717900233260,-173.09676215,0.00027372,2]
[328861176,1717900233271,-150.0,0.00027397,2]
[328861177,1717900233282,-2503.39714468,0.000274,2]
[328861178,1717900233293,-501.40609209,0.000274,2]
[328861179,1717900233305,-999.9917,0.00027471,2]
[328861180,1717900233316,-155.67342786,0.00027481,2]
[328861181,1717900233326,-152.72272886,0.00027535,2]
[328861182,1717900233336,-154.24757255,0.00027535,2]
[328861183,1717900233347,-29856.78417686,0.00027571,2]
[328861184,1717900233357,-628.18198,0.0002762,2]
[328861185,1717900233367,-159.6648569,0.00027654,2]
[328861186,1717900233378,-500.0,0.000278,2]
[328861187,1717900233388,-3684.08927902,0.000278,2]
[328861188,1717900233398,-173.09676215,0.00027835,2]
[328861189,1717900233409,-159.6648569,0.00027845,2]
[328861190,1717900233419,-2406.00400173,0.00027885,2]
[328861191,1717900233430,-45912.6318,0.0002789,2]
[328861192,1717900233440,-180.0,0.00027985,2]
[328861194,1717900233450,-786.14,0.00028,2]
[328861196,1717900233460,-56902.55788317,0.00028,2]
[328861198,1717900233473,-550.49255264,0.00028,2]
[328861200,1717900233485,-860.35582076,0.00028,2]
[328861202,1717900233499,-1381.95190557,0.00028,2]
[328861214,1717900238459,-226.67450997,0.000201,2]
[328861215,1717900238469,-3982.70833787,0.00028,2]
[328861216,1717900238481,-556.10906959,0.00028,2]
[328861217,1717900238494,-4301.317335,0.00028,2]
[328861218,1717900242195,-500.0,0.00027999,2]
[328861222,1717900242206,-460.39317097,0.00027999,2]
[328861224,1717900242219,-129.78330574,0.00027999,2]
[328861225,1717900242230,-500.0,0.00027999,2]
[328861226,1717900242240,-76.76754929,0.00027999,2]
[328861227,1717900242753,-423.23245071,0.00027999,2]
[328861228,1717900242764,-500.0,0.00027999,2]
[328861229,1717900242774,-500.0,0.00027999,2]
[328861230,1717900242784,-1141.37375193,0.00028,2]
[328861231,1717900242796,-1179.86580013,0.00028,2]
[328861232,1717900242809,-489.59093316,0.00028,2]
[328861233,1717900242821,-583.612171,0.00028,2]
[328861234,1717900242833,-753.000003,0.00028,2]
[328861235,1717900242844,-7976.82680112,0.00028,2]
[328861236,1717900242857,-293.7,0.00028,2]
[328861237,1717900242869,-420.20260174,0.00028,2]
[328861238,1717900242882,-328.62939954,0.00028,2]
[328861243,1717900247524,-8150.79299778,0.000192,2]
[328861244,1717900247535,-13116.61177886,0.00028,2]
[328861245,1717900247547,-454.18508886,0.00028,2]
[328861246,1717900248004,-882.29,0.0002799,10]
[328861248,1717900248014,-42671.26440056,0.00028,2]
[328861250,1717900248026,-4013.88696,0.00028,2]
[328861251,1717900248039,-813.90015,0.00028,2]
[328861265,1717900248685,-33339.71080808,0.00028,2]
[328861279,1717900249390,-23534.25625495,0.00026,5]
[328861280,1717900249400,-73888.14644742,0.00028,2]
[328861281,1717900249411,-2000.0,0.00028,2]
[328861282,1717900249421,-200.0,0.00028,2]
[328861283,1717900249431,-1203.96907319,0.00028,2]
[328861284,1717900249441,-169.14140858,0.00028,2]
[328861285,1717900249452,-446.97972469,0.00028,2]
[328861286,1717900249463,-176.065676,0.00028,7]
[328861287,1717900249473,-151.0,0.00028,7]
[328861288,1717900249483,-1566.434133,0.00028,2]
[328861289,1717900249494,-468.94608337,0.00028016,2]
[328861290,1717900249504,-3684.08927896,0.00028033,2]
[328861291,1717900249514,-2406.00400168,0.00028109,2]
[328861292,1717900249524,-150.0,0.00028118,2]
[328861293,1717900249535,-166.68931393,0.00028163,2]
[328861294,1717900249545,-3537.107452,0.00028173,2]
[328861295,1717900249556,-3522.459895,0.00028173,2]
[328861296,1717900249567,-272.65,0.0002818,2]
[328861297,1717900249577,-152.72272886,0.00028255,2]
[328861298,1717900249587,-152.72272886,0.00028257,2]
[328861299,1717900249598,-3684.08927896,0.00028267,2]
[328861300,1717900249608,-161.74837408,0.0002831,2]
[328861301,1717900249618,-2406.00400168,0.00028333,2]
[328861302,1717900249629,-560.74,0.00028352,2]
[328861303,1717900249640,-151.05,0.00028356,2]
[328861304,1717900249650,-150.0,0.00028356,2]
[328861305,1717900249661,-150.0,0.00028356,2]
[328861306,1717900249672,-150.0,0.00028356,2]
[328861307,1717900249682,-150.0,0.00028356,2]
[328861308,1717900249693,-150.0,0.00028356,2]
[328861309,1717900249703,-150.0,0.00028356,2]
[328861310,1717900249713,-150.0,0.00028356,2]
[328861311,1717900249724,-150.0,0.00028356,2]
[328861312,1717900249735,-150.0,0.00028356,2]
[328861313,1717900249747,-300.0,0.00028356,2]
[328861314,1717900249758,-500.0,0.00028396,15]
[328861315,1717900249770,-500.0,0.00028396,15]
[328861316,1717900249780,-500.0,0.00028396,15]
[328861317,1717900249790,-1057.4846922,0.000285,4]
[328861320,1717900249957,-400.0,0.000285,10]
[328861321,1717900249976,-3684.08927896,0.000285,2]
[328861322,1717900249986,-158.131553,0.00028521,2]
[328861323,1717900249996,-3537.107452,0.00028521,2]
[328861324,1717900250006,-3522.459895,0.00028521,2]
[328861325,1717900250016,-205.0,0.0002853,2]
[328861326,1717900250026,-2406.00400168,0.00028557,2]
[328861327,1717900250035,-500.0,0.00028563,2]
[328861329,1717900250045,-200.0,0.00028563,2]
[328861331,1717900250056,-150.0,0.00028582,4]
[328861333,1717900250066,-165.47566355,0.00028585,2]
[328861335,1717900250077,-209.52640753,0.00028599,2]
[328861337,1717900250087,-379.09423951,0.00028599,2]
[328861339,1717900250097,-1046.03884154,0.000286,2]
[328861341,1717900250107,-900.0,0.000286,10]
[328861343,1717900250117,-154.953319,0.000286,7]
[328861345,1717900250129,-152.72272886,0.00028614,2]
[328861346,1717900250139,-165.47566355,0.00028617,2]
[328861347,1717900250149,-500.0,0.00028669,15]
[328861348,1717900250159,-500.0,0.00028669,15]
[328861349,1717900250169,-155.0,0.00028698,2]
[328861350,1717900250180,-168.1727453,0.00028699,2]
[328861351,1717900250190,-351.51873954,0.00028699,2]
[328861352,1717900250200,-152.72272886,0.00028699,2]
[328861353,1717900250210,-260.0,0.000287,2]
[328861354,1717900250220,-1400.0,0.000287,10]
[328861355,1717900250230,-4471.63656955,0.000287,2]
[328861356,1717900250243,-934.80926867,0.000287,2]
[328861357,1717900250254,-11670.97175327,0.000287,2]
[328861358,1717900250267,-342.108,0.000287,2]
[328861362,1717901231116,-1277.06695007,0.00017224,2]
[328861363,1717901231143,-1316.15637107,0.00017225,2]
[328861364,1717901231165,-545.75067402,0.00017259,2]
[328861365,1717901231188,-1112.15179046,0.00018,2]
[328861366,1717901231213,-2699.5870167,0.000192,2]
[328861367,1717901231238,-243.34,0.00019452,2]
[328861368,1717901231261,-150.0,0.00019699,2]
[328861369,1717901231284,-2541.61,0.00019726,2]
[328861370,1717901231308,-499.99,0.00019726,2]
[328861371,1717901231333,-3316.00073511,0.000199,3]
[328861372,1717901231356,-448.37568752,0.0002,2]
[328861373,1717901231378,-1761.06242246,0.0002,2]
[328861374,1717901231401,-5823.05321646,0.0002,2]
[328861375,1717901352097,-1477.01405555,0.000199,2]
[328861376,1717901352122,-888.33331896,0.0002,2]
[328861377,1717901352146,-510.21195869,0.0002,2]
[328861378,1717901352389,-683.43703517,0.0002,2]
[328861379,1717901352414,-2293.70160358,0.0002,2]
[328861390,1717901432931,-25744.33162609,0.0002,2]
[328861391,1717901432945,-574.25050338,0.0002,2]
[328861392,1717901432959,-288.51537332,0.0002,2]
[328861393,1717901432971,-386.63737113,0.0002,2]
[328861394,1717901432982,-683.2,0.0002,2]
[328861395,1717901432995,-2603.71306986,0.0002,2]
[328861396,1717901433007,-943.26744094,0.0002,2]
[328861397,1717901433019,-1425.62936471,0.0002,2]
[328861398,1717901433031,-4375.5488492,0.0002,2]
[328861399,1717901433046,-599.69360093,0.0002,2]
[328861400,1717901433286,-4296.72712488,0.0002,2]
[328861402,1717901433297,-226.67450997,0.000201,2]
[328861404,1717901433312,-155.59394757,0.000209,2]
[328861406,1717901433322,-522.7,0.00020966,2]
[328861408,1717901433332,-1441.08688705,0.00021,2]
[328861410,1717901433343,-10711.9970344,0.000225,2]
[328861412,1717901433354,-499.99,0.000225,2]
[328861414,1717901433364,-532.76218583,0.00022602,2]
[328861416,1717901433374,-15242.26,0.00022614,2]
[328861418,1717901433383,-755.2,0.00022718,2]
[328861420,1717901433396,-250.0,0.00022861,2]
[328861422,1717901433407,-308.35,0.0002299,2]
[328861424,1717901433417,-1831.92,0.00023054,2]
[328861426,1717901433427,-167.72,0.00023071,2]
[328861428,1717901433437,-269.49,0.00023094,2]
[328861430,1717901433446,-522.7,0.0002323,2]
[328861432,1717901433456,-200.0,0.00023402,2]
[328861434,1717901433467,-250.0,0.0002343,2]
[328861436,1717901433477,-1204.56730794,0.00023457,2]
[328861438,1717901433486,-500.0,0.00023539,2]
[328861440,1717901433496,-48673.09852372,0.000236,2]
[328861442,1717901433506,-755.2,0.00023854,2]
[328861444,1717901433516,-171.99,0.00024208,2]
[328861446,1717901433526,-425372.127792,0.00024215,2]
[328861448,1717901433538,-13748.32483707,0.00024215,2]
[328861451,1717901433550,-956.95437252,0.00024215,2]
[328861522,1717901440909,-329.44249999,0.00024215,2]
[328861523,1717901440921,-346.7372337,0.00024215,2]
[328861524,1717901441258,-692.73730078,0.00024215,2]
[328861527,1717901441271,-426.34859777,0.00024215,2]
[328861566,1717901444113,-12075.92109978,0.00024215,2]
[328861568,1717901444626,-531.64806317,0.00024215,2]
[328861572,1717901444638,-131679.07273378,0.00024215,2]
[328861582,1717901446960,-262.40448596,0.00024215,2]
[328861619,1717901447479,-41259.3860557,0.00024215,2]
[328861680,1717902450179,-411.78978404,0.00019,2]
[328861681,1717902450202,-187.53798218,0.0002,2]
[328861682,1717902450226,-226.67450997,0.000201,2]
[328861683,1717902450249,-150.27249323,0.00020664,2]
[328861684,1717902450273,-1000.0,0.00021476,2]
[328861685,1717902450296,-1000.0,0.0002175,2]
[328861686,1717902450319,-936.39,0.0002175,2]
[328861687,1717902450344,-4870.0,0.000218,5]
[328861688,1717902450367,-499.99,0.00021986,2]
[328861689,1717902450389,-1000.0,0.00021986,2]
[328861690,1717902450412,-1892.0,0.000224,2]
[328861691,1717902450434,-629.0,0.000224,2]
[328861692,1717902450457,-511.40315842,0.00022602,2]
[328861693,1717902450481,-500.0,0.00022602,2]
[328861694,1717902450504,-500.0,0.00022602,2]
[328861695,1717902450526,-500.0,0.00022602,2]
[328861696,1717902450548,-884.02,0.00022602,2]
[328861697,1717902450573,-512.51,0.00022795,2]
[328861698,1717902450598,-500.0,0.00023698,2]
[328861699,1717902450622,-523.45806508,0.00023698,2]
[328861700,1717902450646,-511.82733744,0.00023698,2]
[328861701,1717902450671,-413.78519686,0.00024063,2]
[328861702,1717902450692,-2443.70616075,0.00024153,3]
[328861703,1717902450713,-158.51409648,0.00024213,2]
[328861704,1717902450737,-155.09065754,0.00024213,2]
[328861705,1717902450765,-1000.0,0.00024214,2]
[328861706,1717902450789,-1000.0,0.00024214,2]
[328861707,1717902450813,-500.0,0.00024215,2]
[328861708,1717902450839,-258.94282474,0.00024215,2]
[328861709,1717902450869,-27039.12409438,0.00024215,2]
[328861711,1717902556090,-226.67450997,0.00020548,2]
[328861712,1717902556114,-500.0,0.00022602,2]
[328861713,1717902556136,-428.73477604,0.00023698,2]
[328861714,1717902556158,-5226.7641193,0.0002398,2]
[328861726,1717902633625,-226.67450997,0.000201,2]
[328861727,1717902633635,-211.55480922,0.0002388,2]
[328861728,1717902633645,-165.15396362,0.0002398,2]
[328861729,1717902633656,-378.73,0.0002398,2]
[328861730,1717902633676,-2211.6319081,0.0002398,2]
[328861731,1717902633691,-1541.96564134,0.0002398,2]
[328861732,1717902633701,-1363.48445507,0.0002398,2]
[328861733,1717902633711,-9420.30538347,0.000242,2]
[328861734,1717902633722,-280.85203042,0.000242,2]
[328861735,1717902633734,-289.3455407,0.000242,2]
[328861736,1717902633745,-278.60878409,0.000242,2]
[328861737,1717902633757,-1115.8023317,0.000242,2]
[328861738,1717902634095,-3499.02376926,0.000242,2]
[328861741,1717902634108,-363.2425254,0.000242,2]
[328861743,1717902634120,-946.60826906,0.000242,2]
[328861744,1717902634133,-2333.50701761,0.000242,2]
[328861745,1717902634145,-2207.40403079,0.000242,2]
[328861746,1717902634157,-1325.14524,0.000242,2]
[328861747,1717902634169,-5761.97270198,0.000242,2]
[328861771,1717902639243,-4207.32988912,0.000242,2]
[328861774,1717902639255,-27479.17755246,0.000242,2]
[328861777,1717902639763,-4272.26535015,0.000242,2]
[328861778,1717902639776,-841.415,0.000242,2]
[328861779,1717902639788,-673.83706402,0.000242,2]
[328861780,1717902639801,-2926.33676954,0.000242,2]
[328861781,1717902639820,-32800.58191018,0.000242,2]
[328861782,1717902639830,-2667.2404245,0.00024215,2]
[328861829,1717902643771,-2532.92399336,0.00024215,2]
[328861831,1717902643784,-461.81999999,0.00024215,2]
[328861835,1717902644313,-380.62682005,0.00024215,2]
[328861837,1717902644326,-872.03993,0.00024215,2]
[328861840,1717902644338,-865.00999,0.00024215,2]
[328861844,1717902644888,-153.63926567,0.00024215,2]
[328861845,1717902644900,-1042.33917751,0.00024215,2]
[328861846,1717902644910,-446.79515573,0.00024215,2]
[328861847,1717902644919,-1047.10843307,0.00024215,2]
[328861848,1717902644929,-2000.0,0.00024215,2]
[328861849,1717902644938,-200.0,0.00024215,2]
[328861850,1717902644948,-718.69569,0.00024215,2]
[328861851,1717902644957,-200.0,0.00024215,2]
[328861852,1717902644967,-92.23681334,0.00024298,2]
[328861853,1717902644979,-107.76318666,0.00024298,2]
[328861854,1717902644989,-250.0,0.00024312,2]
[328861855,1717902644999,-499.99,0.00024312,2]
[328861856,1717902645008,-284.71,0.00024384,2]
[328861857,1717902645019,-156.8,0.00024384,2]
[328861858,1717902645029,-170.57,0.00024384,2]
[328861859,1717902645039,-2000.0,0.00024457,2]
[328861860,1717902645048,-200.0,0.00024457,2]
[328861861,1717902645058,-200.0,0.00024457,2]
[328861862,1717902645067,-164.57,0.00024464,2]
[328861863,1717902645077,-171.99,0.00024469,2]
[328861864,1717902645086,-211.55480922,0.00024508,2]
[328861865,1717902645095,-1175.97,0.00024576,2]
[328861866,1717902645104,-1000.0,0.00024587,2]
[328861867,1717902645114,-1351.34,0.00024594,2]
[328861868,1717902645123,-337.87,0.00024595,2]
[328861869,1717902645134,-2265.29,0.00024646,2]
[328861870,1717902645143,-480.46,0.0002466,2]
[328861871,1717902645153,-250.0,0.00024683,2]
[328861872,1717902645163,-492.85,0.00024687,2]
[328861873,1717902645172,-2000.0,0.00024702,2]
[328861874,1717902645182,-200.0,0.00024702,2]
[328861875,1717902645193,-200.0,0.00024702,2]
[328861876,1717902645202,-173.54,0.00024747,2]
[328861877,1717902645212,-1031.0,0.000248,2]
[328861878,1717902645221,-492.9,0.00024812,2]
[328861879,1717902645231,-250.0,0.0002482,2]
[328861880,1717902645240,-176.21,0.0002485,2]
[328861881,1717902645250,-256.95,0.00024852,2]
[328861882,1717902645260,-184.32556912,0.0002488,2]
[328861883,1717902645272,-308.57443088,0.0002488,2]
[328861884,1717902645282,-3699.51204654,0.00024947,2]
[328861885,1717902645295,-1468.79524653,0.00024947,2]
[328861886,1717902645306,-1095.17482267,0.00024947,2]
[328861887,1717902645318,-400.0,0.00024947,2]
[328861888,1717902645329,-337.65,0.00024947,2]
[328861889,1717902645341,-348.8799999,0.00024947,2]
[328861890,1717902645352,-1668.70433702,0.00024947,2]
[328861891,1717902645364,-259.81768672,0.00024947,2]
[328861892,1717902645376,-354.72788086,0.00024947,2]
[328861894,1717902645389,-348.49967892,0.00024947,2]
[328861895,1717902645400,-1752.86053826,0.00024947,2]
[328861896,1717902645412,-3294.42427913,0.00024947,2]
[328861897,1717902645427,-9417.0797708,0.00024947,2]
[328861898,1717902645439,-1819.99999776,0.00024947,2]
[328861899,1717902645451,-3022.2317506,0.00024947,2]
[328861900,1717902645463,-1088.3299892,0.00024947,2]
[328861901,1717902645474,-8102.55812948,0.00024947,2]
[328861902,1717902645485,-166297.54727057,0.00024947,2]
[328861903,1717902645497,-468.39336769,0.00024947,2]
[328861904,1717902645509,-555.29,0.00024947,2]
[328861905,1717902645520,-829.98384581,0.00024947,2]
[328861906,1717902645532,-549.80271798,0.00024947,2]
[328861907,1717902645543,-2211.38560585,0.00024947,2]
[328861908,1717902645555,-11505.8443114,0.00024947,2]
[328861923,1717902647833,-644.70431179,0.00024947,2]
[328861926,1717902647848,-1426.20702479,0.00024947,2]
[328861964,1717902653746,-226.67450997,0.000201,2]
[328861965,1717902653756,-1335.91829346,0.000242,2]
[328861966,1717902653766,-4458.30961888,0.00024947,2]
[328861967,1717902653778,-453.0,0.00024947,2]
[328861969,1717903108907,176.01,0.00024671,120]
[328861972,1717903747177,-752.55976757,0.00017259,2]
[328861973,1717903747202,-158.61624587,0.000199,2]
[328861974,1717903747227,-155.0,0.0002,2]
[328861975,1717903747250,-1780.23049439,0.0002067,2]
[328861976,1717903747273,-526.34987357,0.00020671,2]
[328861977,1717903747297,-499.99,0.00020671,2]
[328861978,1717903747319,-507.40709392,0.000219,2]
[328861979,1717903747342,-1957.00279468,0.00022,2]
[328861980,1717903747364,-1333.67,0.00022,2]
[328861981,1717903747388,-500.0,0.00022602,2]
[328861982,1717903747411,-500.0,0.00022602,2]
[328861983,1717903747437,-523.37,0.00022671,2]
[328861984,1717903747460,-353.7370284,0.00023,2]
[328861985,1717903747488,-500.0,0.00023698,2]
[328861986,1717903747511,-500.0,0.00023698,2]
[328861987,1717903747540,-195.26593874,0.00024131,2]
[328861998,1717903833592,-500.0,0.00022602,2]
[328861999,1717903833604,-500.0,0.00022602,2]
[328862000,1717903833616,-804.73406126,0.00024131,2]
[328862001,1717903833630,-1046.32185811,0.000242,2]
[328862002,1717903833642,-155.26938041,0.000242,2]